fUSD/lending_fUSD_20250502
["ID","MTS","AMOUNT","RATE_DAILY","PERIOD"]
[359636976,1746203442827,-666.27,0.00019762,2]
[359636977,1746203442837,-450.0,0.00019762,2]
[359636978,1746203442846,-1676.69,0.00019762,2]
[359636979,1746203442855,-450.0,0.00019762,2]
[359636980,1746203442865,-450.0,0.00019762,2]
[359636981,1746203442875,-826.63,0.00019762,2]
[359636982,1746203442885,-419.69688529,0.00019762,2]
[359636983,1746203442895,-450.0,0.00019762,2]
[359636984,1746203442904,-635.88,0.00019762,2]
[359636985,1746203442914,-450.0,0.00019762,2]
[359636986,1746203442923,-585.54,0.00019762,2]
[359636987,1746203442932,-450.0,0.00019762,2]
[359636988,1746203442942,-630.1,0.00019762,2]
[359636989,1746203442954,-450.0,0.00019762,2]
[359636990,1746203442963,-450.0,0.00019762,2]
[359636991,1746203442973,-794.83,0.00019762,2]
[359636992,1746203442982,-450.0,0.00019762,2]
[359636993,1746203442992,-450.0,0.00019762,2]
[359636994,1746203443001,-678.53,0.00019762,2]
[359636995,1746203443010,-786.16,0.00019762,2]
[359636996,1746203443019,-1977.1,0.00019762,2]
[359636997,1746203443029,-776.12,0.00019762,2]
[359636998,1746203443038,-450.0,0.00019762,2]
[359636999,1746203443047,-693.3,0.00019762,2]
[359637000,1746203443057,-653.04,0.00019762,2]
[359637001,1746203443067,-1231.47,0.00019762,2]
[359637002,1746203443076,-841.19,0.00019762,2]
[359637003,1746203443086,-450.0,0.00019762,2]
[359637005,1746203443097,-450.0,0.00019762,2]
[359637007,1746203443106,-450.0,0.00019762,2]
[359637008,1746203443116,-450.0,0.00019762,2]
[359637009,1746203443125,-539.73,0.00019762,2]
[359637010,1746203443135,-450.0,0.00019762,2]
[359637012,1746203443144,-450.0,0.00019762,2]
[359637014,1746203443154,-450.0,0.00019762,2]
[359637016,1746203443164,-524.56,0.00019762,2]
[359637017,1746203443173,-450.0,0.00019762,2]
[359637018,1746203443182,-1248.33,0.00019762,2]
[359637019,1746203443192,-450.0,0.00019762,2]
[359637020,1746203443205,-535.71,0.00019762,2]
[359637023,1746203443218,-668.11,0.00019762,2]
[359637025,1746203443228,-587.69,0.00019762,2]
[359637027,1746203443237,-450.0,0.00019762,2]
[359637029,1746203443248,-1680.03,0.00019762,2]
[359637030,1746203443258,-654.63,0.00019762,2]
[359637031,1746203443268,-450.0,0.00019762,2]
[359637032,1746203443278,-1296.20654735,0.00019767,2]
[359637033,1746203443290,-3888.08437123,0.00019767,2]
[359637034,1746203443300,-500.0,0.00019773,2]
[359637035,1746203443310,-185.86498536,0.00019773,2]
[359637037,1746203443319,-500.0,0.00019773,2]
[359637040,1746203443329,-500.0,0.00019773,2]
[359637042,1746203443339,-500.0,0.00019773,2]
[359637043,1746203443348,-500.4284128,0.00019773,2]
[359637044,1746203443357,-500.0,0.00019773,2]
[359637045,1746203443367,-500.0,0.00019773,2]
[359637046,1746203443376,-1296.20654735,0.00019794,2]
[359637047,1746203443385,-3888.08437123,0.00019794,2]
[359637048,1746203443395,-1100.3275435,0.00019799,2]
[359637049,1746203443404,-51726.546503,0.0001981,2]
[359637050,1746203443413,-1296.20654735,0.0001982,2]
[359637051,1746203443423,-3888.08437123,0.0001982,2]
[359637052,1746203443432,-2000.0,0.00019839,2]
[359637053,1746203443441,-200.0,0.00019839,2]
[359637054,1746203443453,-500.0,0.0001984,2]
[359637055,1746203443462,-2000.0,0.0001984,2]
[359637056,1746203443471,-200.0,0.0001984,2]
[359637057,1746203443481,-1296.20654735,0.00019847,2]
[359637058,1746203443490,-3888.08437123,0.00019847,2]
[359637059,1746203443499,-1296.20654735,0.00019873,2]
[359637060,1746203443508,-3888.08437123,0.00019873,2]
[359637061,1746203443517,-60563.12505587,0.0001988,2]
[359637062,1746203443527,-500.0,0.0001989,2]
[359637063,1746203443536,-61748.4444,0.000199,2]
[359637064,1746203443546,-156.69874575,0.000199,2]
[359637065,1746203443555,-190.15738304,0.000199,2]
[359637066,1746203443564,-18376.30093517,0.000199,2]
[359637067,1746203443573,-165.23990396,0.000199,2]
[359637068,1746203443583,-1901.12315016,0.000199,3]
[359637069,1746203443593,-1296.20654735,0.000199,2]
[359637070,1746203443602,-3888.08437123,0.000199,2]
[359637071,1746203443611,-673.71454159,0.000199,2]
[359637072,1746203443621,-1041.9586156,0.000199,2]
[359637073,1746203443630,-4041.2154715,0.000199,2]
[359637074,1746203443639,-855.13848234,0.00019904,2]
[359637075,1746203443648,-151.0,0.00019912,2]
[359637076,1746203443658,-151.0,0.00019913,2]
[359637077,1746203443667,-151.0,0.00019914,2]
[359637078,1746203443677,-151.0,0.00019915,2]
[359637079,1746203443686,-151.0,0.00019923,2]
[359637080,1746203443695,-2082.024,0.0001994,2]
[359637081,1746203443707,-167.072,0.0001994,2]
[359637082,1746203443716,-151.0,0.00019943,2]
[359637084,1746203443726,-207.4,0.00019953,2]
[359637086,1746203443735,-151.0,0.00019954,2]
[359637087,1746203443745,-668.65185757,0.00019954,2]
[359637088,1746203443754,-151.0,0.00019954,2]
[359637089,1746203443763,-514.0,0.0001997,2]
[359637090,1746203443773,-4021.0,0.00019973,2]
[359637091,1746203443783,-501.47327578,0.00019973,2]
[359637092,1746203443793,-162.40954813,0.00019973,2]
[359637094,1746203443802,-165.99958587,0.00019973,2]
[359637096,1746203443811,-606.40594085,0.00019973,2]
[359637098,1746203443821,-500.0,0.00019973,2]
[359637100,1746203443831,-500.0,0.00019973,2]
[359637102,1746203443841,-500.0,0.00019973,2]
[359637104,1746203443851,-505.12152298,0.00019973,2]
[359637106,1746203443861,-368.87036061,0.00019973,2]
[359637108,1746203443871,-500.0,0.00019973,2]
[359637110,1746203443881,-500.0,0.00019973,2]
[359637112,1746203443891,-502.19667785,0.00019973,2]
[359637114,1746203443901,-505.11388319,0.00019973,2]
[359637116,1746203443911,-538.7932649,0.00019973,2]
[359637118,1746203443920,-302.52572163,0.00019973,2]
[359637120,1746203443931,-500.0,0.00019973,2]
[359637122,1746203443941,-500.0,0.00019973,2]
[359637124,1746203443952,-500.0,0.00019973,2]
[359637126,1746203443962,-517.08214642,0.00019973,2]
[359637128,1746203443971,-500.0,0.00019973,2]
[359637130,1746203443981,-6718.0,0.00019977,2]
[359637133,1746203443990,-153.0,0.00019977,2]
[359637135,1746203443999,-878.0,0.00019977,2]
[359637137,1746203444009,-375.89281427,0.0001998,2]
[359637139,1746203444018,-13054.7000989,0.00019986,2]
[359637141,1746203444028,-5802.8097854,0.00019986,2]
[359637143,1746203444038,-974.89097565,0.0001999,2]
[359637145,1746203444048,-974.89097565,0.0001999,2]
[359637147,1746203444058,-974.89097565,0.0001999,2]
[359637149,1746203444067,-500.0,0.00019999,2]
[359637151,1746203444077,-675.05638042,0.00019999,2]
[359637153,1746203444087,-300.0,0.00019999,2]
[359637155,1746203444097,-300.0,0.00019999,2]
[359637157,1746203444107,-500.0,0.00019999,2]
[359637159,1746203444117,-500.0,0.00019999,2]
[359637162,1746203444127,-500.0,0.00019999,2]
[359637164,1746203444136,-178.73,0.00019999,2]
[359637165,1746203444146,-1234.0,0.00019999,2]
[359637167,1746203444156,-346.12920957,0.0002,2]
[359637169,1746203444165,-366649.72268969,0.0002,2]
[359637171,1746203444174,-1746943.49520483,0.0002,2]
[359637173,1746203444184,-1836368.74392374,0.0002,2]
[359637189,1746203444332,-0.02949562,0.0002,2]
[359637191,1746203444343,-168928.48983755,0.0002,2]
[359637224,1746203444647,-450.0,0.00019762,2]
[359637226,1746203444656,-93504.8148,0.0002,2]
[359637228,1746203444667,-275.38302238,0.0002,2]
[359637231,1746203444683,-1955.14933462,0.0002,2]
[359637254,1746203444898,-70554.91002011,0.0002,2]
[359637286,1746203446277,-749.209421,0.00019761,2]
[359637287,1746203446435,-225.510579,0.00019761,2]
[359637288,1746203446446,-450.0,0.00019762,2]
[359637289,1746203446455,-450.0,0.00019762,2]
[359637290,1746203446465,-189.95194323,0.000199,2]
[359637291,1746203446475,-2269.59747777,0.0002,2]
[359637304,1746203461808,3778.89,0.00032877,60]
[359637305,1746203522059,242.61887,0.0002,23]
[359637306,1746203779523,165.29,0.00019447,2]
[359637307,1746203843163,250.0,0.00018858,7]
[359637308,1746204011021,250.0,0.00018843,2]
[359637311,1746204074409,40114.0,0.00032877,60]
[359637312,1746204140567,510.32,0.00018796,2]
[359637313,1746204222105,302.48,0.00018802,2]
[359637314,1746204222955,302.48,0.00025853,120]
[359637315,1746204223179,302.48,0.00028203,120]
[359637316,1746204239117,1000.0,0.00018788,2]
[359637317,1746204294859,194.56,0.00027425,30]
[359637318,1746204309329,1103.67,0.00016845,2]
[359637319,1746204309577,1103.67,0.00019109,2]
[359637320,1746204317388,150.0,0.00018,2]
[359637321,1746204317450,150.0,0.00018029,2]
[359637322,1746204317524,150.0,0.00018057,2]
[359637323,1746204317596,150.0,0.00018086,2]
[359637324,1746204317668,150.0,0.00018114,2]
[359637325,1746204317741,150.0,0.00018143,2]
[359637326,1746204317806,150.0,0.00018171,2]
[359637327,1746204317878,150.0,0.000182,2]
[359637328,1746204318048,150.0,0.00018229,2]
[359637329,1746204318083,150.0,0.00018257,2]
[359637330,1746204318150,150.0,0.00018286,2]
[359637331,1746204318763,150.0,0.00018314,2]
[359637332,1746204318798,150.0,0.00018343,2]
[359637333,1746204318839,150.0,0.00018371,2]
[359637334,1746204318869,150.0,0.000184,2]
[359637335,1746204318904,150.0,0.00018429,2]
[359637336,1746204318946,150.0,0.00018457,2]
[359637337,1746204318991,150.0,0.00018486,2]
[359637338,1746204319049,150.0,0.00018514,2]
[359637339,1746204319090,150.0,0.00018543,2]
[359637340,1746204319130,150.0,0.00018571,2]
[359637341,1746204319176,150.0,0.000186,2]
[359637342,1746204319215,150.0,0.00018629,2]
[359637343,1746204319255,150.0,0.00018657,2]
[359637344,1746204319292,150.0,0.00018686,2]
[359637345,1746204319334,150.0,0.00018714,2]
[359637346,1746204319374,150.0,0.00018743,2]
[359637347,1746204319422,150.0,0.00018771,2]
[359637348,1746204319465,150.0,0.000188,2]
[359637349,1746204319507,150.0,0.00018829,2]
[359637350,1746204319540,150.0,0.00018857,2]
[359637351,1746204319607,150.0,0.00018886,2]
[359637352,1746204319670,150.0,0.00018914,2]
[359637353,1746204319716,150.0,0.00018943,2]
[359637354,1746204319829,150.0,0.00018971,2]
[359637355,1746204319884,150.0,0.00019,2]
[359637356,1746204319920,150.0,0.00019029,2]
[359637357,1746204319999,150.0,0.00019057,2]
[359637358,1746204320065,150.0,0.00019086,2]
[359637359,1746204320136,150.0,0.00019114,2]
[359637360,1746204320210,150.0,0.00019143,2]
[359637361,1746204320251,150.0,0.00019171,2]
[359637362,1746204320299,150.0,0.000192,4]
[359637363,1746204320369,150.0,0.00019229,4]
[359637364,1746204320474,150.0,0.00019257,4]
[359637365,1746204320526,150.0,0.00019286,4]
[359637366,1746204320584,150.0,0.00019314,4]
[359637367,1746204320650,150.0,0.00019343,4]
[359637368,1746204320738,150.0,0.00019371,4]
[359637369,1746204320801,150.0,0.000194,4]
[359637370,1746204320858,150.0,0.00019429,4]
[359637371,1746204320931,150.0,0.00019457,4]
[359637372,1746204321002,150.0,0.00019486,4]
[359637373,1746204323947,155.09,0.00018715,2]
[359637375,1746204373896,169.8933421,0.00032877,60]
[359637376,1746204379073,169.8933421,0.00032877,60]
[359637377,1746204379863,169.8933421,0.00032877,60]
[359637378,1746204381183,169.8933421,0.00032877,60]
[359637379,1746204420556,1000.0,0.00019501,2]
[359637380,1746204470510,540.0,0.00032877,60]
[359637390,1746204631433,-150.0,0.00019514,4]
[359637391,1746204631444,-250.0,0.00019529,2]
[359637392,1746204631455,-150.0,0.00019543,4]
[359637393,1746204631466,-727.1486,0.0001956,2]
[359637394,1746204631477,-150.0,0.00019571,4]
[359637395,1746204631487,-150.0,0.000196,4]
[359637396,1746204631499,-898.57206215,0.000196,2]
[359637397,1746204631511,-2264.09999,0.000196,2]
[359637398,1746204631524,-8637.99524785,0.000196,2]
[359637399,1746204631536,-150.0,0.00019629,4]
[359637400,1746204631551,-348.48492304,0.00019635,2]
[359637401,1746204631564,-151.51507696,0.00019635,2]
[359637402,1746204631575,-804.69,0.0001965,3]
[359637403,1746204631587,-472.41126819,0.00019656,2]
[359637404,1746204631600,-727.58873181,0.00019656,2]
[359637405,1746204631611,-300.0,0.00019657,2]
[359637406,1746204631624,-300.0,0.00019657,2]
[359637407,1746204631635,-150.0,0.00019657,4]
[359637408,1746204631646,-850.0,0.00019658,2]
[359637409,1746204631656,-139.7852762,0.00019658,2]
[359637410,1746204631669,-160.2147238,0.00019658,2]
[359637411,1746204631680,-342.63754046,0.00019659,2]
[359637412,1746204631698,-157.36245954,0.00019659,2]
[359637413,1746204631710,-500.0,0.00019659,2]
[359637414,1746204631720,-500.0,0.00019659,2]
[359637415,1746204631731,-500.0,0.00019659,2]
[359637416,1746204631741,-500.0,0.00019659,2]
[359637417,1746204631751,-500.0,0.00019659,2]
[359637418,1746204631762,-500.0,0.00019659,2]
[359637420,1746204631773,-500.0,0.00019659,2]
[359637422,1746204631783,-500.0,0.00019659,2]
[359637424,1746204631793,-500.0,0.00019659,2]
[359637426,1746204631803,-500.0,0.00019659,2]
[359637428,1746204631814,-500.0,0.00019659,2]
[359637430,1746204631824,-286.62821157,0.00019659,2]
[359637433,1746204631835,-500.0,0.00019659,2]
[359637435,1746204631845,-500.0,0.00019659,2]
[359637437,1746204631855,-500.0,0.00019659,2]
[359637439,1746204631866,-500.0,0.00019659,2]
[359637441,1746204631875,-500.0,0.00019659,2]
[359637443,1746204631887,-500.0,0.00019659,2]
[359637445,1746204631898,-500.0,0.00019659,2]
[359637446,1746204631909,-500.0,0.00019659,2]
[359637449,1746204631920,-500.0,0.00019659,2]
[359637453,1746204631930,-500.0,0.00019659,2]
[359637456,1746204631942,-500.0,0.00019659,2]
[359637458,1746204631952,-51.86709902,0.00019659,2]
[359637460,1746204631965,-448.13290098,0.00019659,2]
[359637463,1746204631976,-500.0,0.00019659,2]
[359637465,1746204631986,-500.0,0.00019659,2]
[359637467,1746204631996,-438.24794723,0.00019659,2]
[359637469,1746204632009,-61.75205277,0.00019659,2]
[359637472,1746204632020,-275.79939668,0.00019659,2]
[359637474,1746204632033,-224.20060332,0.00019659,2]
[359637476,1746204632044,-624.37838274,0.00019659,2]
[359637478,1746204632055,-624.37838274,0.00019659,2]
[359637480,1746204632066,-624.37838274,0.00019659,2]
[359637482,1746204632076,-595.81980498,0.00019659,2]
[359637486,1746204632108,-28.55857776,0.00019659,2]
[359637488,1746204632119,-426.36671443,0.00019659,2]
[359637491,1746204632132,-198.01166831,0.00019659,2]
[359637493,1746204632143,-278.45887003,0.00019659,2]
[359637495,1746204632156,-345.91951271,0.00019659,2]
[359637497,1746204632167,-220.82085187,0.00019659,2]
[359637500,1746204632180,-403.55753087,0.00019659,2]
[359637501,1746204632191,-11.53968694,0.00019659,2]
[359637504,1746204632205,-308.807424,0.00019659,2]
[359637507,1746204632232,-304.0312718,0.00019659,2]
[359637510,1746204632243,-624.37838274,0.00019659,2]
[359637512,1746204632254,-141.44966923,0.00019659,2]
[359637514,1746204632268,-475.425,0.00019659,2]
[359637516,1746204632280,-7.50371351,0.00019659,2]
[359637518,1746204632291,-624.37838274,0.00019659,2]
[359637520,1746204632302,-624.37838274,0.00019659,2]
[359637522,1746204632312,-356.73952101,0.00019659,2]
[359637559,1746204632750,-267.63886173,0.00019659,2]
[359637563,1746204632770,-40.87313327,0.00019659,2]
[359637566,1746204632797,-583.50524947,0.00019659,2]
[359637568,1746204632806,-624.37838274,0.00019659,2]
[359637570,1746204632815,-624.37838274,0.00019659,2]
[359637572,1746204632825,-319.36240821,0.00019659,2]
[359637574,1746204632836,-305.01597453,0.00019659,2]
[359637577,1746204632846,-624.37838274,0.00019659,2]
[359637578,1746204632855,-624.37838274,0.00019659,2]
[359637580,1746204632865,-624.37838274,0.00019659,2]
[359637582,1746204632875,-121.29845495,0.00019659,2]
[359637585,1746204632889,-294.8482207,0.00019659,2]
[359637587,1746204632988,-208.23170709,0.00019659,2]
[359637588,1746204632998,-624.37838274,0.00019659,2]
[359637589,1746204633008,-624.37838274,0.00019659,2]
[359637590,1746204633018,-624.37838274,0.00019659,2]
[359637591,1746204633029,-615.79659309,0.00019659,2]
[359637592,1746204633042,-8.58178965,0.00019659,2]
[359637593,1746204633052,-624.37838274,0.00019659,2]
[359637594,1746204633063,-491.96312384,0.00019659,2]
[359637597,1746204637496,-132.4152589,0.00019659,2]
[359637598,1746204637506,-624.37838274,0.00019659,2]
[359637599,1746204637516,-624.37838274,0.00019659,2]
[359637600,1746204637526,-624.37838274,0.00019659,2]
[359637601,1746204637535,-624.37838274,0.00019659,2]
[359637602,1746204637548,-624.37838274,0.00019659,2]
[359637603,1746204637557,-624.37838274,0.00019659,2]
[359637604,1746204637567,-624.37838274,0.00019659,2]
[359637605,1746204637578,-624.37838274,0.00019659,2]
[359637606,1746204637587,-624.37838274,0.00019659,2]
[359637607,1746204637597,-624.37838274,0.00019659,2]
[359637608,1746204637606,-624.37838274,0.00019659,2]
[359637609,1746204637616,-624.37838274,0.00019659,2]
[359637610,1746204637627,-6.08922935,0.00019659,2]
[359637611,1746204637639,-618.28915339,0.00019659,2]
[359637612,1746204637649,-624.37838274,0.00019659,2]
[359637613,1746204637658,-590.09992579,0.00019659,2]
[359637614,1746204637670,-34.27845695,0.00019659,2]
[359637615,1746204637679,-239.17587515,0.00019659,2]
[359637616,1746204637710,-385.20250759,0.00019659,2]
[359637617,1746204637720,-624.37838274,0.00019659,2]
[359637618,1746204637730,-624.37838274,0.00019659,2]
[359637619,1746204637740,-597.06182849,0.00019659,2]
[359637620,1746204637749,-597.06182849,0.00019659,2]
[359637621,1746204637759,-433.2042049,0.00019659,2]
[359637622,1746204637770,-163.85762359,0.00019659,2]
[359637623,1746204637780,-597.06182849,0.00019659,2]
[359637624,1746204637789,-597.06182849,0.00019659,2]
[359637625,1746204637799,-597.06182849,0.00019659,2]
[359637626,1746204637808,-597.06182849,0.00019659,2]
[359637628,1746204637818,-597.06182849,0.00019659,2]
[359637630,1746204637827,-597.06182849,0.00019659,2]
[359637632,1746204637837,-597.06182849,0.00019659,2]
[359637634,1746204637846,-597.06182849,0.00019659,2]
[359637635,1746204637855,-597.06182849,0.00019659,2]
[359637637,1746204637865,-597.06182849,0.00019659,2]
[359637639,1746204637874,-597.06182849,0.00019659,2]
[359637641,1746204637883,-597.06182849,0.00019659,2]
[359637643,1746204637892,-597.06182849,0.00019659,2]
[359637644,1746204637901,-289.36857801,0.00019659,2]
[359637645,1746204637910,-61748.4444,0.0001966,2]
[359637646,1746204637920,-266.11467914,0.0001966,2]
[359637647,1746204637929,-48447.53387599,0.0001966,2]
[359637648,1746204637938,-226.3212,0.0001966,2]
[359637649,1746204637949,-2332.85062281,0.0001966,2]
[359637650,1746204637958,-176.8805,0.00019662,2]
[359637652,1746204637967,-21.82475009,0.00019686,4]
[359637653,1746204637979,-128.17524991,0.00019686,4]
[359637654,1746204637988,-2332.85062273,0.00019687,2]
[359637655,1746204637997,-289.36857801,0.00019693,2]
[359637656,1746204638006,-1000.0,0.000197,2]
[359637657,1746204638014,-544.0,0.000197,2]
[359637658,1746204638022,-1000.0,0.000197,2]
[359637659,1746204638031,-1000.0,0.000197,2]
[359637660,1746204638039,-1320.0,0.000197,2]
[359637661,1746204638048,-2332.85062273,0.00019713,2]
[359637662,1746204638056,-150.0,0.00019714,4]
[359637663,1746204638064,-500.0,0.00019726,2]
[359637664,1746204638290,-289.36857801,0.00019728,2]
[359637665,1746204638301,-2332.85062273,0.0001974,2]
[359637666,1746204638311,-150.0,0.00019743,4]
[359637667,1746204638320,-165.88,0.00019748,2]
[359637668,1746204638330,-165.88,0.00019749,2]
[359637669,1746204638340,-165.88,0.00019749,2]
[359637670,1746204638349,-165.88,0.00019749,2]
[359637671,1746204638359,-450.0,0.00019757,2]
[359637672,1746204638370,-516.44,0.00019757,2]
[359637673,1746204638379,-459.24,0.00019757,2]
[359637674,1746204638389,-452.3,0.00019757,2]
[359637675,1746204638399,-664.21,0.00019757,2]
[359637676,1746204638408,-450.0,0.00019757,2]
[359637677,1746204638418,-450.0,0.00019757,2]
[359637678,1746204638428,-6977.55,0.00019757,2]
[359637679,1746204638437,-450.0,0.00019757,2]
[359637680,1746204638448,-450.0,0.00019757,2]
[359637681,1746204638458,-450.0,0.00019757,2]
[359637682,1746204638468,-450.0,0.00019757,2]
[359637683,1746204638478,-1000.0,0.00019758,2]
[359637684,1746204638487,-450.0,0.00019758,2]
[359637685,1746204638497,-450.0,0.00019758,2]
[359637686,1746204638507,-450.0,0.00019758,2]
[359637687,1746204638516,-450.0,0.00019758,2]
[359637688,1746204638526,-450.0,0.00019758,2]
[359637689,1746204638535,-450.0,0.00019758,2]
[359637690,1746204638546,-346.26768263,0.00019758,2]
[359637691,1746204638556,-450.0,0.00019758,2]
[359637692,1746204638566,-450.0,0.00019758,2]
[359637693,1746204638575,-450.0,0.00019758,2]
[359637694,1746204638585,-250.0,0.00019758,2]
[359637695,1746204638596,-450.0,0.00019758,2]
[359637696,1746204638606,-450.0,0.00019758,2]
[359637697,1746204638615,-450.0,0.00019758,2]
[359637698,1746204638625,-450.0,0.00019758,2]
[359637699,1746204638635,-415.47896754,0.00019758,2]
[359637700,1746204638645,-450.0,0.00019758,2]
[359637701,1746204638654,-450.0,0.00019758,2]
[359637702,1746204638663,-476.7,0.00019758,2]
[359637703,1746204638672,-500.0,0.00019758,2]
[359637704,1746204638682,-450.0,0.00019758,2]
[359637705,1746204638692,-1137.88,0.00019758,2]
[359637706,1746204638701,-450.0,0.00019758,2]
[359637707,1746204638711,-450.0,0.00019758,2]
[359637708,1746204638720,-450.0,0.00019758,2]
[359637709,1746204638731,-450.0,0.00019758,2]
[359637710,1746204638740,-450.0,0.00019758,2]
[359637711,1746204638749,-450.0,0.00019758,2]
[359637712,1746204638759,-450.0,0.00019758,2]
[359637713,1746204638768,-450.0,0.00019758,2]
[359637714,1746204638778,-11203.76,0.00019758,2]
[359637715,1746204638787,-233.68277317,0.00019758,2]
[359637716,1746204638796,-450.0,0.00019758,2]
[359637717,1746204638806,-450.0,0.00019758,2]
[359637718,1746204638817,-495.77391401,0.00019758,2]
[359637719,1746204638825,-450.0,0.00019758,2]
[359637720,1746204638833,-529.47,0.00019758,2]
[359637721,1746204638842,-450.0,0.00019758,2]
[359637722,1746204638852,-450.0,0.00019758,2]
[359637723,1746204638861,-450.0,0.00019758,2]
[359637724,1746204638872,-380.30240514,0.00019758,2]
[359637725,1746204638881,-665.86,0.00019758,2]
[359637726,1746204638891,-450.0,0.00019758,2]
[359637727,1746204638901,-450.0,0.00019758,2]
[359637728,1746204638911,-632.35,0.00019758,2]
[359637729,1746204638921,-450.0,0.00019758,2]
[359637730,1746204638931,-450.0,0.00019758,2]
[359637731,1746204638941,-552.76,0.00019758,2]
[359637732,1746204638951,-450.0,0.00019758,2]
[359637733,1746204638961,-450.0,0.00019758,2]
[359637734,1746204638971,-450.0,0.00019758,2]
[359637735,1746204638980,-450.0,0.00019758,2]
[359637736,1746204638990,-450.0,0.00019758,2]
[359637737,1746204638999,-450.0,0.00019758,2]
[359637738,1746204639009,-450.0,0.00019758,2]
[359637739,1746204639018,-450.0,0.00019758,2]
[359637740,1746204639028,-450.0,0.00019758,2]
[359637741,1746204639037,-450.0,0.00019758,2]
[359637742,1746204639047,-450.0,0.00019758,2]
[359637743,1746204639061,-450.0,0.00019758,2]
[359637744,1746204639071,-450.0,0.00019758,2]
[359637745,1746204639081,-571.0,0.00019758,2]
[359637746,1746204639093,-730.06,0.00019758,2]
[359637747,1746204639103,-1415.71,0.00019758,2]
[359637748,1746204639114,-450.0,0.00019758,2]
[359637749,1746204639123,-450.0,0.00019758,2]
[359637750,1746204639134,-450.0,0.00019758,2]
[359637751,1746204639145,-428.82262756,0.00019758,2]
[359637752,1746204639158,-1569.26,0.00019758,2]
[359637753,1746204639170,-450.0,0.00019758,2]
[359637754,1746204639180,-450.0,0.00019758,2]
[359637755,1746204639190,-502.57,0.00019758,2]
[359637756,1746204639201,-546.94,0.00019758,2]
[359637757,1746204639210,-450.0,0.00019758,2]
[359637758,1746204639220,-450.0,0.00019758,2]
[359637759,1746204639230,-450.0,0.00019758,2]
[359637760,1746204639240,-450.0,0.00019758,2]
[359637761,1746204639252,-450.0,0.00019758,2]
[359637762,1746204639261,-40.61827904,0.00019758,2]
[359637763,1746204639284,-706.06362396,0.00019758,2]
[359637765,1746204639294,-450.0,0.00019758,2]
[359637766,1746204639304,-450.0,0.00019758,2]
[359637767,1746204639314,-603.94,0.00019758,2]
[359637768,1746204639323,-450.0,0.00019758,2]
[359637769,1746204639333,-453.08,0.00019758,2]
[359637770,1746204639343,-153.91637604,0.00019758,2]
[359637771,1746204639355,-419.63751196,0.00019758,2]
[359637772,1746204639365,-936.91248804,0.00019758,2]
[359637775,1746204639430,-446.98751196,0.00019758,2]
[359637776,1746204639440,-1200.06923196,0.00019758,2]
[359637777,1746204639452,-1243.17076804,0.00019758,2]
[359637778,1746204639462,-500.0,0.00019758,2]
[359637779,1746204639472,-225.38413137,0.00019758,2]
[359637780,1746204639481,-251.12747852,0.00019758,2]
[359637781,1746204639490,-199.930361,0.00019758,2]
[359637782,1746204639500,-500.0,0.00019758,2]
[359637783,1746204639509,-500.0,0.00019758,2]
[359637784,1746204639519,-500.0,0.00019758,2]
[359637785,1746204639529,-500.0,0.00019758,2]